bitfinex-derivatives/quotes_BNBF0:USTF0_20250221
["timestamp","ask_amount","ask_price","bid_price","bid_amount"]
[1740101818043,1.329,654.08,653.16,1.14770052]
[1740101818236,0.30577766,654.07,653.16,1.14770052]
[1740101819546,0.30577766,654.07,653.25,1.14770052]
[1740101820245,0.88346062,654.06,653.25,1.14770052]
[1740101820541,0.30578701,654.05,653.25,1.14770052]
[1740101821647,0.30578701,654.05,652.75,1.14770052]
[1740101824653,0.30578701,654.05,652.81,1.14770052]
[1740101826650,1.59943621,654.04,652.81,1.14770052]
[1740101826853,0.30580104,654.02,652.81,1.14770052]
[1740101827655,1.59943621,654.01,652.82,1.14770052]
[1740101827955,0.30581039,654.0,652.82,1.14770052]
[1740101830458,0.30581039,654.0,652.94,1.14770052]
[1740101831760,1.322,653.99,652.94,1.14770052]
[1740101832456,0.30581974,653.98,652.94,1.14770052]
[1740101832756,0.30581974,653.98,652.91,1.14770052]
[1740101835460,0.30581974,653.98,652.92,1.14770052]
[1740101838459,0.30581974,653.98,652.91,1.14770052]
[1740101841361,0.30581974,653.98,652.88,1.14770052]
[1740101844160,0.30581974,653.98,652.78,1.14770052]
[1740101846763,0.30581974,653.98,652.16,2.34164263]
[1740101846764,0.30581974,653.98,652.82,1.14770052]
[1740101847062,1.078,653.97,652.82,1.14770052]
[1740101847264,0.30583377,653.95,652.82,1.14770052]
[1740101847867,1.59971806,653.94,652.82,1.14770052]
[1740101848065,0.30584781,653.92,652.82,1.14770052]
[1740101850166,0.30584781,653.92,652.76,1.14770052]
[1740101852269,0.30584781,653.92,652.55,1.14770052]
[1740101855568,0.30584781,653.92,652.33,1.14770052]
[1740101855962,1.329,653.91,652.33,1.14770052]
[1740101857268,0.30586184,653.89,652.33,1.14770052]
[1740101857665,0.30586184,653.89,652.28,1.14770052]
[1740101860671,0.30586184,653.89,651.59,1.3763124]
[1740101860672,0.30586184,653.89,652.45,1.14770052]
[1740101862072,0.88019214,653.88,652.45,1.14770052]
[1740101862568,0.30587587,653.86,652.45,1.14770052]
[1740101863375,0.30587587,653.86,652.4,1.14770052]
[1740101864873,1.6001594,653.87,652.4,1.14770052]
[1740101865773,1.6001594,653.87,652.53,1.14770052]
[1740101867076,1.094,653.86,652.53,1.14770052]
[1740101868776,1.094,653.86,652.23,1.14770052]
[1740101871073,1.094,653.86,652.21,1.14770052]
[1740101872478,0.87774932,653.85,652.21,1.14770052]
[1740101872979,0.87774932,653.84,652.21,1.14770052]
[1740101873773,0.87774932,653.85,652.21,1.14770052]
[1740101874374,0.87774932,653.84,652.21,1.14770052]
[1740101874576,1.094,653.86,652.21,1.14770052]
[1740101875178,0.87776654,653.85,652.21,1.14770052]
[1740101875979,0.87776654,653.84,652.21,1.14770052]
[1740101876579,0.87776654,653.85,652.49,1.14770052]
[1740101877481,0.918,653.84,652.49,1.14770052]
[1740101879280,0.918,653.84,652.51,1.14770052]
[1740101882075,0.918,653.84,652.52,1.14770052]
[1740101884683,0.918,653.84,652.58,1.14770052]
[1740101887283,0.918,653.84,652.78,1.14770052]
[1740101890190,0.918,653.84,652.59,1.14770052]
[1740101892192,0.918,653.84,652.6,1.14770052]
[1740101892391,0.30589458,653.82,652.6,1.14770052]
[1740101894987,0.30589458,653.82,652.12,2.34164263]
[1740101894988,0.30589458,653.82,652.56,1.14770052]
[1740101897600,0.30589458,653.82,652.74,1.14770052]
[1740101900300,0.30589458,653.82,652.78,1.14770052]
[1740101903106,0.30589458,653.82,652.75,1.14770052]
[1740101907210,0.30589458,653.82,652.35,1.3763124]
[1740101907211,0.30589458,653.82,652.74,1.14770052]
[1740101909907,0.30589458,653.82,652.79,1.14770052]
[1740101910113,0.88313799,653.81,652.79,1.14770052]
[1740101910315,0.30590394,653.8,652.79,1.14770052]
[1740101910711,1.59985902,653.79,652.79,1.14770052]
[1740101911013,0.3059133,653.78,652.79,1.14770052]
[1740101912709,0.3059133,653.78,652.6,1.14770052]
[1740101914216,0.88292014,653.77,652.6,1.14770052]
[1740101914411,0.3059133,653.78,652.6,1.14770052]
[1740101914412,0.88292014,653.76,652.6,1.14770052]
[1740101914814,0.30592734,653.75,652.6,1.14770052]
[1740101915016,0.30592734,653.75,652.66,1.14770052]
[1740101916423,1.057,653.74,652.66,1.14770052]
[1740101916613,0.3059367,653.73,652.66,1.14770052]
[1740101917517,0.3059367,653.73,652.74,1.14770052]
[1740101917720,1.442,653.72,652.74,1.14770052]
[1740101917918,0.30594606,653.71,652.74,1.14770052]
[1740101920820,0.30594606,653.71,652.99,1.14770052]
[1740101923023,0.30594606,653.71,652.93,1.14770052]
[1740101925318,0.30594606,653.71,652.92,1.14770052]
[1740101927922,0.30594606,653.71,652.68,1.14770052]
[1740101930623,0.30594606,653.71,652.64,1.14770052]
[1740101933725,0.30594606,653.71,652.65,1.14770052]
[1740101936621,0.30594606,653.71,652.81,1.14770052]
[1740101938527,0.30594606,653.71,652.83,1.14770052]
[1740101944123,1.38,653.7,652.83,1.14770052]
[1740101944428,0.30595542,653.69,652.83,1.14770052]
[1740101944924,0.30595542,653.69,652.65,1.14770052]
[1740101945427,1.60011035,653.68,652.65,1.14770052]
[1740101945631,0.30596478,653.67,652.65,1.14770052]
[1740101947428,0.30596478,653.67,652.68,1.14770052]
[1740101950035,0.88442039,653.66,652.68,1.14770052]
[1740101950230,0.30597882,653.64,652.68,1.14770052]
[1740101950434,0.88442039,653.63,652.68,1.14770052]
[1740101950637,0.30598818,653.62,652.78,1.14770052]
[1740101951333,0.88442039,653.61,652.78,1.14770052]
[1740101951538,0.30600223,653.59,652.78,1.14770052]
[1740101953443,0.30600223,653.59,652.64,1.14770052]
[1740101955743,1.6003127,653.58,652.41,1.14770052]
[1740101955943,0.30601159,653.57,652.41,1.14770052]
[1740101957744,0.30601159,653.57,652.44,1.14770052]
[1740101960247,1.99501159,653.57,652.44,1.14770052]
[1740101960450,1.99501159,653.57,652.42,1.14770052]
[1740101963347,1.99501159,653.57,651.58,2.34164263]
[1740101963348,1.99501159,653.57,652.39,1.14770052]
[1740101965948,3.21701159,653.57,652.39,1.14770052]
[1740101966151,3.21701159,653.57,652.35,1.14770052]
[1740101971559,3.21701159,653.57,652.36,1.14770052]
[1740101973662,3.21701159,653.57,652.49,1.14770052]
[1740101976064,3.21701159,653.57,652.54,1.14770052]
[1740101978961,3.21701159,653.57,652.56,1.14770052]
[1740101981462,3.21701159,653.57,652.35,1.14770052]
[1740101981666,4.45601159,653.57,652.35,1.14770052]
[1740101984367,4.45601159,653.57,652.13,1.146927]
[1740101984368,4.45601159,653.57,652.44,1.14770052]
[1740101986770,4.45601159,653.57,652.73,1.14770052]
[1740101991675,4.45601159,653.57,652.65,1.14770052]
[1740101994877,4.45601159,653.57,652.66,1.14770052]
[1740101999973,4.45601159,653.57,652.69,1.14770052]
[1740102000173,0.88459307,653.56,652.69,1.14770052]
[1740102000373,0.30602096,653.55,652.69,1.14770052]
[1740102000775,2.01951253,653.54,652.69,1.14770052]
[1740102000980,0.30603032,653.53,652.69,1.14770052]
[1740102001279,0.88459307,653.52,652.69,1.14770052]
[1740102001483,0.30603969,653.51,652.69,1.14770052]
[1740102001780,0.88459307,653.5,652.69,1.14770052]
[1740102001981,0.30604905,653.49,652.69,1.14770052]
[1740102002178,0.88459307,653.48,652.69,1.14770052]
[1740102002579,0.88459307,653.48,652.48,1.14770052]
[1740102003080,0.30604905,653.49,652.48,1.14770052]
[1740102003676,1.318,653.48,652.48,1.14770052]
[1740102006388,1.6004231,653.47,652.48,1.14770052]
[1740102008692,1.318,653.48,652.48,1.14770052]
[1740102009295,1.318,653.48,652.72,1.14770052]
[1740102012893,1.318,653.48,652.77,1.14770052]
[1740102013092,2.671,653.47,652.77,1.14770052]
[1740102015799,2.671,653.47,652.76,1.14770052]
[1740102018598,2.671,653.47,652.53,1.14770052]
[1740102021201,2.671,653.47,652.47,1.14770052]
[1740102024303,2.671,653.47,652.48,1.14770052]
[1740102026901,2.671,653.47,652.66,1.14770052]
[1740102028299,2.671,653.47,652.04,2.34164263]
[1740102028300,2.671,653.47,652.69,1.14770052]
[1740102030810,2.671,653.47,652.77,1.14770052]
[1740102032809,2.671,653.47,652.64,1.14770052]
[1740102035305,2.671,653.47,652.57,1.14770052]
[1740102035306,0.30606311,653.46,652.57,1.14770052]
[1740102037608,0.30606311,653.46,652.35,1.14770052]
[1740102040206,0.30606311,653.46,652.45,1.14770052]
[1740102043013,1.233,653.45,652.45,1.14770052]
[1740102043209,0.30607247,653.44,652.45,1.14770052]
[1740102044214,1.74607247,653.44,652.45,1.14770052]
[1740102045216,1.74607247,653.44,652.5,1.14770052]
[1740102047812,1.74607247,653.44,652.47,1.14770052]
[1740102052821,1.74607247,653.44,652.46,1.14770052]
[1740102053818,0.88436167,653.43,652.46,1.14770052]
[1740102054022,0.30608653,653.41,652.46,1.14770052]
[1740102054523,0.88436167,653.4,652.46,1.14770052]
[1740102054724,0.30609589,653.39,652.46,1.14770052]
[1740102054923,0.88436167,653.38,652.46,1.14770052]
[1740102055118,0.30610526,653.37,652.46,1.14770052]
[1740102056424,0.30610526,653.37,652.15,1.146927]
[1740102056723,0.30610526,653.37,652.1,1.14770052]
[1740102059122,0.30610526,653.37,652.07,1.14770052]
[1740102061526,0.30610526,653.37,652.09,1.14770052]
[1740102062222,1.437,653.36,652.09,1.14770052]
[1740102062425,0.30611932,653.34,652.09,1.14770052]
[1740102064126,0.30611932,653.34,652.15,1.14770052]
[1740102064621,1.04,653.33,652.15,1.14770052]
[1740102064826,0.30613338,653.31,652.15,1.14770052]
[1740102067229,0.30613338,653.31,652.02,1.14770052]
[1740102070133,0.30613338,653.31,651.86,1.14770052]
[1740102072639,0.30613338,653.31,651.85,1.14770052]
[1740102074540,0.30613338,653.31,652.06,1.14770052]
[1740102077245,0.30613338,653.31,652.18,1.14770052]
[1740102079351,0.30613338,653.31,652.21,1.14770052]
[1740102081847,0.30613338,653.31,652.33,1.14770052]
[1740102084252,0.30613338,653.31,652.4,1.14770052]
[1740102086748,0.30613338,653.31,652.45,1.14770052]
[1740102087949,0.944,653.3,652.45,1.14770052]
[1740102092661,0.944,653.3,652.27,1.14770052]
[1740102096359,0.944,653.3,652.18,1.14770052]
[1740102099563,0.944,653.3,652.15,1.14770052]
[1740102102266,0.944,653.3,652.26,1.14770052]
[1740102102963,0.938,653.29,652.26,1.14770052]
[1740102104964,1.717,653.28,652.26,1.14770052]
[1740102105164,1.717,653.28,652.36,1.14770052]
[1740102107467,1.717,653.28,652.62,1.14770052]
[1740102110170,1.717,653.28,652.64,1.14770052]
[1740102112277,1.717,653.28,652.71,1.14770052]
[1740102116180,1.717,653.28,652.76,1.14770052]
[1740102118582,1.717,653.28,652.86,1.14770052]
[1740102118980,0.938,653.29,652.86,1.14770052]
[1740102121186,0.938,653.29,652.94,1.14770052]
[1740102121584,0.992,653.46,652.94,1.14770052]
[1740102124392,0.992,653.46,652.72,1.14770052]
[1740102129993,0.992,653.46,652.81,1.14770052]
[1740102133397,0.992,653.46,652.8,1.14770052]
[1740102135396,2.262,653.55,652.8,1.14770052]
[1740102135903,2.262,653.55,652.79,1.14770052]
[1740102138400,2.262,653.55,652.86,1.14770052]
[1740102140603,2.262,653.55,652.87,1.14770052]
[1740102143107,2.262,653.55,652.88,1.14770052]
[1740102146310,2.262,653.55,652.8,1.14770052]
[1740102149406,2.262,653.55,652.85,1.14770052]
[1740102152417,2.262,653.55,652.96,1.14770052]
[1740102155619,2.262,653.55,652.55,1.3763124]
[1740102155620,2.262,653.55,653.04,1.14770052]
[1740102156017,1.261,653.55,653.04,1.14770052]
[1740102157716,1.261,653.55,653.14,1.14770052]
[1740102158618,0.93,653.63,653.14,1.14770052]
[1740102160223,0.93,653.63,653.03,1.14770052]
[1740102163224,0.93,653.63,653.0,1.14770052]
[1740102166925,0.93,653.63,652.99,1.14770052]
[1740102168828,1.3682797,654.34,652.99,1.14770052]
[1740102169031,0.30566083,654.32,652.99,1.14770052]
[1740102169533,0.88280881,654.31,652.99,1.14770052]
[1740102169737,0.30567485,654.29,652.99,1.14770052]
[1740102170033,0.30567485,654.29,653.12,1.14770052]
[1740102170431,1.59916059,654.28,653.12,1.14770052]
[1740102170629,0.30568886,654.26,653.12,1.14770052]
[1740102171530,0.88280881,654.25,653.12,1.14770052]
[1740102171728,0.30570288,654.23,653.12,1.14770052]
[1740102172435,0.30570288,654.23,653.0,1.14770052]
[1740102173229,0.8830613,654.22,653.0,1.14770052]
[1740102173428,0.3057169,654.2,653.0,1.14770052]
[1740102173736,0.8830613,654.19,653.0,1.14770052]
[1740102175341,0.30573092,654.17,652.74,1.14770052]
[1740102176535,0.88389774,654.16,652.74,1.14770052]
[1740102177240,1.59916059,654.28,652.74,1.14770052]
[1740102177241,0.30574494,654.14,652.74,1.14770052]
[1740102177638,0.88389774,654.13,652.7,1.14770052]
[1740102177835,0.30575897,654.11,652.7,1.14770052]
[1740102178741,0.88389774,654.1,652.7,1.14770052]
[1740102178941,0.30577299,654.08,652.7,1.14770052]
[1740102179441,0.88389774,654.07,652.7,1.14770052]
[1740102179642,0.30578701,654.05,652.7,1.14770052]
[1740102180246,1.13522178,654.04,652.7,1.14770052]
[1740102180449,0.30580104,654.02,652.7,1.14770052]
[1740102180643,0.30580104,654.02,652.0,2.34164263]
[1740102180644,1.13522178,654.01,652.63,1.14770052]
[1740102180839,0.30581507,653.99,652.63,1.14770052]
[1740102181042,1.13523115,653.98,652.63,1.14770052]
[1740102181238,0.3058291,653.96,652.63,1.14770052]
[1740102181441,1.13523115,653.95,652.63,1.14770052]
[1740102181644,0.30584313,653.93,652.63,1.14770052]
[1740102182539,0.88472958,653.92,652.63,1.14770052]
[1740102183345,0.30585716,653.9,652.89,1.14770052]
[1740102184044,0.88472958,653.89,652.89,1.14770052]
[1740102184245,0.30587119,653.87,652.89,1.14770052]
[1740102184446,0.88472958,653.86,652.89,1.14770052]
[1740102184746,0.30588523,653.84,652.89,1.14770052]
[1740102185441,0.88472958,653.83,652.89,1.14770052]
[1740102185644,0.30589458,653.82,652.89,1.14770052]
[1740102186547,0.30589458,653.82,652.94,1.14770052]
[1740102187343,0.30589458,653.82,652.94,1.13730363]
[1740102189247,0.30589458,653.82,652.36,2.34164263]
[1740102189248,0.30589458,653.82,652.69,1.146927]
[1740102190446,1.74889458,653.82,652.69,1.146927]
[1740102190951,1.59995096,653.81,652.69,1.146927]
[1740102191251,0.30590862,653.79,652.69,1.146927]
[1740102192145,0.30590862,653.79,652.53,1.146927]
[1740102195353,0.30590862,653.79,652.16,2.64831583]
[1740102195354,0.30590862,653.79,652.55,1.146927]
[1740102198351,0.30590862,653.79,652.68,1.146927]
[1740102200959,0.30590862,653.79,652.67,1.146927]
[1740102202760,0.30590862,653.79,652.51,1.146927]
[1740102209765,0.30590862,653.79,652.53,1.146927]
[1740102215771,0.30590862,653.79,652.38,1.146927]
[1740102217265,0.87982844,653.78,652.38,1.146927]
[1740102217871,2.0083303,653.77,652.38,1.146927]
[1740102218166,0.30592734,653.75,652.38,1.146927]
[1740102218371,1.12850186,653.74,652.38,1.146927]
[1740102218571,0.30594138,653.72,652.38,1.146927]
[1740102219071,0.87982844,653.71,652.18,1.146927]
[1740102219465,0.30595542,653.69,652.18,1.146927]
[1740102219970,0.87982844,653.68,652.18,1.146927]
[1740102220171,0.30596946,653.66,652.18,1.146927]
[1740102220670,0.87982844,653.65,652.18,1.146927]
[1740102220972,0.3059835,653.63,652.18,1.146927]
[1740102224973,0.3059835,653.63,652.19,1.146927]
[1740102225173,0.87844552,653.62,652.19,1.146927]
[1740102225572,0.30599755,653.6,652.19,1.146927]
[1740102226877,0.30599755,653.6,652.11,1.146927]
[1740102229179,1.60081574,653.59,652.13,1.146927]
[1740102229479,0.30601159,653.57,652.13,1.146927]
[1740102231775,0.30601159,653.57,652.14,1.146927]
[1740102234683,0.30601159,653.57,652.17,1.146927]
[1740102236782,1.34201159,653.57,652.17,1.146927]
[1740102236981,1.34201159,653.57,652.1,1.146927]
[1740102239184,1.34201159,653.57,652.13,1.146927]
[1740102242590,1.34201159,653.57,652.01,1.146927]
[1740102245386,1.34201159,653.57,651.78,1.146927]
[1740102247391,1.12661639,653.56,651.78,1.146927]
[1740102247593,0.30602564,653.54,651.78,1.146927]
[1740102247795,1.12661639,653.53,651.78,1.146927]
[1740102247994,0.30603969,653.51,651.78,1.146927]
[1740102248398,0.30603969,653.51,651.8,1.146927]
[1740102248399,1.60131295,653.5,651.8,1.146927]
[1740102248700,0.30605374,653.48,651.8,1.146927]
[1740102249099,1.1263915,653.47,651.8,1.146927]
[1740102249296,0.30606779,653.45,651.8,1.146927]
[1740102249694,0.87811654,653.44,651.8,1.146927]
[1740102250198,0.30608184,653.42,651.8,1.146927]
[1740102250398,0.87811654,653.41,651.8,1.146927]
[1740102250696,0.30609589,653.39,651.48,1.146927]
[1740102250896,0.30609589,653.39,651.49,0.30698859]
[1740102253702,0.30609589,653.39,651.5,1.60155246]
[1740102253900,0.30609589,653.39,651.58,1.146927]
[1740102255802,1.422,653.38,651.58,1.146927]
[1740102256005,0.30610995,653.36,651.58,1.146927]
[1740102256806,0.30610995,653.36,651.51,0.30697917]
[1740102258505,1.239,653.35,651.51,0.30697917]
[1740102258804,0.30612401,653.33,651.51,0.30697917]
[1740102259607,0.30612401,653.33,651.83,1.146927]
[1740102265807,0.30612401,653.33,651.51,0.30697917]
[1740102273916,0.30612401,653.33,651.85,1.146927]
[1740102275221,2.39312401,653.33,651.85,1.146927]
[1740102276021,2.39312401,653.33,652.11,1.146927]
[1740102278227,3.55212401,653.33,652.17,1.146927]
[1740102280726,3.55212401,653.33,652.22,1.146927]
[1740102282527,3.55212401,653.33,652.15,1.146927]
[1740102285322,3.55212401,653.33,652.16,1.146927]
[1740102288032,3.55212401,653.33,652.02,1.146927]
[1740102290734,3.55212401,653.33,651.95,1.146927]
[1740102292537,3.55212401,653.33,652.05,1.146927]
[1740102292935,2.0131162,653.32,652.05,1.146927]
[1740102293136,0.30613806,653.3,652.05,1.146927]
[1740102293531,0.88183309,653.29,652.05,1.146927]
[1740102293736,0.30615212,653.27,652.05,1.146927]
[1740102294336,2.4831399,653.26,652.05,1.146927]
[1740102294635,0.3061615,653.25,652.05,1.146927]
[1740102295238,0.3061615,653.25,652.15,1.146927]
[1740102297642,0.88281332,653.24,651.85,1.146927]
[1740102297840,0.30617087,653.23,651.85,1.146927]
[1740102300846,0.30617087,653.23,651.8,1.146927]
[1740102303341,0.30617087,653.23,651.87,1.146927]
[1740102305450,1.047,653.22,651.87,1.146927]
[1740102305751,0.30618024,653.21,651.87,1.146927]
[1740102306052,0.30618024,653.21,651.85,1.146927]
[1740102306649,1.213,653.2,651.85,1.146927]
[1740102306850,0.30618962,653.19,651.85,1.146927]
[1740102307851,0.30618962,653.19,652.2,1.14861604]
[1740102310948,1.60124541,653.18,652.2,1.14861604]
[1740102311151,1.60124541,653.18,651.69,1.3763124]
[1740102311152,0.30619899,653.17,652.39,1.14861604]
[1740102314055,0.30619899,653.17,652.45,1.14861604]
[1740102316751,0.30619899,653.17,652.53,1.14861604]
[1740102318861,0.30619899,653.17,651.9,2.34164263]
[1740102318862,0.30619899,653.17,652.23,1.14861604]
[1740102322656,1.395,653.16,652.23,1.14861604]
[1740102323762,0.30620837,653.15,652.23,1.14861604]
[1740102324261,0.30620837,653.15,651.51,0.30697917]
[1740102324262,0.30620837,653.15,652.1,1.14861604]
[1740102326965,0.30620837,653.15,651.85,1.14861604]
[1740102329266,0.88233054,653.14,651.85,1.14861604]
[1740102329468,0.30622243,653.12,651.85,1.14861604]
[1740102329669,0.30622243,653.12,651.84,1.14861604]
[1740102330163,1.60161389,653.11,651.84,1.14861604]
[1740102330765,0.30623181,653.1,651.84,1.14861604]
[1740102332870,0.30623181,653.1,652.21,1.14861604]
[1740102335368,1.157,653.09,651.8,1.14861604]
[1740102337970,1.157,653.09,652.07,1.14861604]
[1740102338171,1.269,653.08,652.07,1.14861604]
[1740102341873,1.269,653.08,652.12,1.14861604]
[1740102342875,1.57524119,653.08,652.12,1.14861604]
[1740102344079,1.57524119,653.08,652.06,1.14861604]
[1740102348685,0.30624588,653.07,652.06,1.14861604]
[1740102349583,0.30624588,653.07,652.24,1.14861604]
[1740102351185,0.30624588,653.07,652.26,1.14861604]
[1740102353580,0.30624588,653.07,652.29,1.14861604]
[1740102356488,0.30624588,653.07,652.02,1.14861604]
[1740102359291,0.30624588,653.07,651.97,1.14861604]
[1740102359690,1.59324588,653.07,651.97,1.14861604]
[1740102362598,1.6016876,653.06,652.11,1.14861604]
[1740102362898,0.30625526,653.05,652.11,1.14861604]
[1740102365700,0.30625526,653.05,652.04,1.14861604]
[1740102368396,0.30625526,653.05,651.83,1.146927]
[1740102368397,0.30625526,653.05,651.99,1.14861604]
[1740102370903,0.30625526,653.05,651.44,2.34164263]
[1740102370904,0.30625526,653.05,652.03,1.14861604]
[1740102373803,0.30625526,653.05,651.71,1.14861604]
[1740102376605,0.30625526,653.05,651.7,1.14861604]
[1740102377202,1.028,653.04,651.7,1.14861604]
[1740102378000,1.206,653.03,651.7,1.14861604]
[1740102378808,1.231,653.02,651.47,1.14861604]
[1740102379108,0.30627871,653.0,651.47,1.14861604]
[1740102379802,1.60234519,652.99,651.47,1.14861604]
[1740102380603,0.30629278,652.97,651.47,1.14861604]
[1740102381004,0.30629278,652.97,651.43,1.14861604]
[1740102384207,0.30629278,652.97,651.54,1.14861604]
[1740102386413,0.30629278,652.97,651.8,1.14861604]
[1740102389317,0.30629278,652.97,651.71,1.14861604]
[1740102391714,0.30629278,652.97,651.67,1.14861604]
[1740102395219,0.30629278,652.97,651.31,1.146927]
[1740102395220,0.30629278,652.97,651.5,1.14861604]
[1740102397725,0.30629278,652.97,651.55,1.14861604]
[1740102400122,0.30629278,652.97,651.74,1.14861604]
[1740102402424,1.624,652.96,651.74,1.14861604]
[1740102402626,0.30630685,652.94,651.74,1.14861604]
[1740102403223,0.30630685,652.94,651.79,1.14861604]
[1740102405830,0.30630685,652.94,651.9,1.14861604]
[1740102408132,0.30630685,652.94,651.94,1.14861604]
[1740102413232,2.01095649,652.93,651.94,1.14861604]
[1740102413433,0.30632093,652.91,651.97,1.14861604]
[1740102414034,1.60213003,652.9,651.97,1.14861604]
[1740102414235,0.306335,652.88,651.97,1.14861604]
[1740102416242,0.88185945,652.87,651.76,1.14861604]
[1740102416436,0.30634439,652.86,651.76,1.14861604]
[1740102419542,0.88245047,652.85,651.76,1.14861604]
[1740102419735,0.30635377,652.84,651.76,1.14861604]
[1740102421743,0.30635377,652.84,651.8,1.14861604]
[1740102422942,1.348,652.83,651.8,1.14861604]
[1740102423551,0.30636316,652.82,651.8,1.14861604]
[1740102424049,0.30636316,652.82,652.04,1.14861604]
[1740102424250,1.60214847,652.81,652.04,1.14861604]
[1740102424453,0.30637254,652.8,652.04,1.14861604]
[1740102427154,0.30637254,652.8,651.89,1.14861604]
[1740102430452,0.30637254,652.8,651.9,1.14861604]
[1740102432552,0.30637254,652.8,651.73,1.14861604]
[1740102432553,1.181,652.79,651.73,1.14861604]
[1740102435155,1.181,652.79,651.77,1.14861604]
[1740102437657,1.181,652.79,651.86,1.14861604]
[1740102440356,1.181,652.79,651.87,1.14861604]
[1740102442755,1.181,652.79,651.88,1.14861604]
[1740102444860,1.181,652.79,651.28,1.3763124]
[1740102444861,1.181,652.79,651.83,1.14861604]
[1740102447462,0.30637254,652.8,651.83,1.14861604]
[1740102450964,0.30637254,652.8,651.87,1.14861604]
[1740102453260,0.30637254,652.8,651.97,1.14861604]
[1740102453865,1.145,652.79,651.97,1.14861604]
[1740102454669,1.058,652.78,651.97,1.14861604]
[1740102455667,1.058,652.78,652.07,1.14861604]
[1740102458380,1.058,652.78,652.05,1.14861604]
[1740102461375,1.058,652.78,652.07,1.14861604]
[1740102463980,1.058,652.78,652.09,1.14861604]
[1740102466677,1.058,652.78,652.17,1.14861604]
[1740102468779,1.058,652.78,652.04,1.14861604]
[1740102471585,1.058,652.78,652.08,1.14861604]
[1740102473690,1.058,652.78,652.0,1.14861604]
[1740102474389,1.754,652.77,652.0,1.14861604]
[1740102476488,1.754,652.77,652.14,1.14861604]
[1740102478593,1.754,652.77,652.13,1.14861604]
[1740102482396,0.42048392,652.77,652.15,1.14861604]
[1740102482697,0.0500379,652.77,652.15,1.14861604]
[1740102482896,1.3682797,654.29,652.15,1.14861604]
[1740102483096,0.30572157,654.19,652.15,1.14861604]
[1740102483390,2.03253987,654.18,652.15,1.14861604]
[1740102483596,0.30577299,654.08,652.15,1.14861604]
[1740102483792,1.15071214,654.07,652.15,1.14861604]
[1740102483993,0.30578701,654.05,652.15,1.14861604]
[1740102484194,1.15071214,654.04,652.15,1.14861604]
[1740102484495,0.30580104,654.02,652.15,1.14861604]
[1740102484693,1.15083845,654.01,652.15,1.14861604]
[1740102484890,0.30581507,653.99,652.15,1.14861604]
[1740102485090,1.15083845,653.98,652.37,1.14861604]
[1740102485293,0.3058291,653.96,652.37,1.14861604]
[1740102485495,3.47079079,653.95,652.37,1.14861604]
[1740102485794,0.30584313,653.93,652.37,1.14861604]
[1740102485995,1.15083845,653.92,652.37,1.14861604]
[1740102486195,0.30585716,653.9,652.37,1.14861604]
[1740102486395,1.15083845,653.89,652.37,1.14861604]
[1740102486588,0.30587119,653.87,652.37,1.14861604]
[1740102486792,1.15083845,653.86,652.37,1.14861604]
[1740102486990,0.30588523,653.84,652.37,1.14861604]
[1740102487195,1.15083845,653.83,652.37,1.14861604]
[1740102487397,0.30589926,653.81,652.37,1.14861604]
[1740102487592,1.15086532,653.8,652.37,1.14861604]
[1740102487797,0.3059133,653.78,652.37,1.14861604]
[1740102487996,1.15086532,653.77,652.37,1.14861604]
[1740102488193,0.30592734,653.75,652.37,1.14861604]
[1740102488399,1.15086532,653.74,652.46,1.14861604]
[1740102488599,0.30594138,653.72,652.46,1.14861604]
[1740102488899,1.15086532,653.71,652.46,1.14861604]
[1740102489100,0.30595542,653.69,652.46,1.14861604]
[1740102489296,1.15086532,653.68,652.46,1.14861604]
[1740102489501,0.30596946,653.66,652.46,1.14861604]
[1740102489699,1.15086532,653.65,652.46,1.14861604]
[1740102489897,0.3059835,653.63,652.46,1.14861604]
[1740102490096,1.15086532,653.62,652.02,1.14861604]
[1740102490298,0.30599755,653.6,652.02,1.14861604]
[1740102490499,1.15086532,653.59,652.02,1.14861604]
[1740102490699,0.30601159,653.57,652.02,1.14861604]
[1740102490900,1.15086532,653.56,652.02,1.14861604]
[1740102491096,0.30602564,653.54,652.02,1.14861604]
[1740102491302,1.15086532,653.53,652.02,1.14861604]
[1740102491495,0.30603969,653.51,652.02,1.14861604]
[1740102491701,1.15086532,653.5,652.02,1.14861604]
[1740102491901,0.30605374,653.48,652.02,1.14861604]
[1740102492100,1.15086532,653.47,652.02,1.14861604]
[1740102492303,0.30606779,653.45,652.02,1.14861604]
[1740102492502,1.15086532,653.44,652.02,1.14861604]
[1740102492706,0.30608184,653.42,652.01,1.14861604]
[1740102492898,1.15086532,653.41,652.01,1.14861604]
[1740102493103,0.30609589,653.39,652.01,1.14861604]
[1740102493298,1.15086532,653.38,652.01,1.14861604]
[1740102493498,0.30610526,653.37,652.01,1.14861604]